bitfinex/quotes_SOLUSD_20260305
["timestamp","ask_amount","ask_price","bid_price","bid_amount"]
[1772721069697,11.00388437,90.877,90.814,2.32683084]
[1772721070302,2.22147337,90.874,90.814,2.32683084]
[1772721070496,2.22147337,90.866,90.814,2.32683084]
[1772721070717,2.22147337,90.858,90.814,2.32683084]
[1772721071013,2.22147337,90.858,90.768,1.10170985]
[1772721071014,0.14216157,90.851,90.792,2.32683084]
[1772721071219,11.00630661,90.857,90.792,2.32683084]
[1772721071419,2.22147337,90.874,90.794,2.32683084]
[1772721071620,2.22147337,90.868,90.804,2.32683084]
[1772721071921,1.10025525,90.88,90.773,1.10164916]
[1772721071922,2.22147337,90.864,90.774,2.32683084]
[1772721072116,2.22147337,90.859,90.788,2.32683084]
[1772721072299,2.22147337,90.859,90.796,2.32683084]
[1772721072497,2.22147337,90.869,90.804,2.32683084]
[1772721072704,2.22147337,90.847,90.77,2.32683084]
[1772721072904,2.22147337,90.843,90.778,2.32683084]
[1772721073117,2.22147337,90.839,90.778,2.32683084]
[1772721073418,2.22147337,90.833,90.778,2.32683084]
[1772721073600,1.10025525,90.866,90.784,2.32683084]
[1772721073601,2.22147337,90.848,90.784,2.32683084]
[1772721074212,0.28432314,90.862,90.79,2.32683084]
[1772721074506,2.50579651,90.862,90.794,2.32683084]
[1772721074708,2.22147337,90.845,90.794,2.32683084]
[1772721074906,10.9590209,90.86,90.777,3.69383402]
[1772721074907,2.22147337,90.843,90.795,38.5483782]
[1772721075102,2.22147337,90.843,90.796,2.32683084]
[1772721075505,2.22147337,90.839,90.767,2.32683084]
[1772721075700,2.22147337,90.827,90.77,2.32683084]
[1772721075910,2.22147337,90.821,90.77,2.32683084]
[1772721076211,2.22147337,90.819,90.77,2.32683084]
[1772721076400,2.22147337,90.819,90.766,11.01734129]
[1772721076401,2.22147337,90.843,90.772,2.32683084]
[1772721076604,11.00788164,90.844,90.774,2.32683084]
[1772721076605,2.22147337,90.838,90.774,2.32683084]
[1772721076819,11.00733441,90.849,90.784,2.32683084]
[1772721077026,2.22147337,90.848,90.791,2.32683084]
[1772721077411,2.22147337,90.848,90.779,2.32683084]
[1772721077412,2.22147337,90.829,90.779,2.32683084]
[1772721077614,2.22147337,90.823,90.779,2.32683084]
[1772721077806,2.22147337,90.836,90.779,2.32683084]
[1772721078015,2.22147337,90.829,90.779,2.32683084]
[1772721078221,2.22147337,90.827,90.775,11.01624896]
[1772721078417,2.22147337,90.819,90.775,11.01624896]
[1772721078621,2.22147337,90.819,90.775,38.55687137]
[1772721078820,2.22147337,90.819,90.776,2.1333564]
[1772721079157,2.26347045,90.817,90.777,11.01600625]
[1772721079312,2.26347045,90.815,90.772,2.1333564]
[1772721079634,2.26347045,90.827,90.772,2.1333564]
[1772721079814,2.54779359,90.826,90.772,2.1333564]
[1772721080126,2.54779359,90.819,90.771,11.01672182]
[1772721080430,2.54779359,90.819,90.771,38.55855786]
[1772721080818,2.54779359,90.819,90.772,2.1333564]
[1772721081121,2.54779359,90.819,90.773,38.5577209]
[1772721081122,2.26347045,90.817,90.773,38.5577209]
[1772721081331,2.26347045,90.799,90.76,0.2]
[1772721081511,2.26347045,90.787,90.734,11.02122688]
[1772721081712,2.26347045,90.777,90.718,2.1333564]
[1772721082025,0.28432314,90.77,90.718,2.1333564]
[1772721082528,2.54779359,90.77,90.718,2.1333564]
[1772721082715,3.69383402,90.807,90.711,38.58407469]
[1772721082716,2.26347045,90.789,90.724,2.1333564]
[1772721082924,2.26347045,90.779,90.711,11.02402134]
[1772721083108,2.26347045,90.779,90.675,44.11350831]
[1772721083109,2.26347045,90.759,90.713,11.02377828]
[1772721083427,2.26347045,90.755,90.704,11.02476419]
[1772721083608,2.26347045,90.749,90.711,11.02402134]
[1772721084509,2.26347045,90.749,90.706,11.02455925]
[1772721084712,2.26347045,90.749,90.71,11.22412063]
[1772721084909,2.26347045,90.749,90.71,0.2]
[1772721085225,11.0195266,90.748,90.713,13.15713468]
[1772721085620,11.0195266,90.748,90.711,11.02402134]
[1772721085621,2.26347045,90.747,90.711,11.02402134]
[1772721086122,0.28432314,90.767,90.712,2.1333564]
[1772721086328,0.28432314,90.769,90.71,0.2]
[1772721086329,0.28432314,90.75,90.71,0.2]
[1772721086524,2.14334054,90.739,90.691,11.02645245]
[1772721086727,2.14334054,90.729,90.678,27.5699411]
[1772721086921,2.14334054,90.741,90.692,2.18046049]
[1772721087134,2.14334054,90.739,90.692,2.18046049]
[1772721087333,3.69383402,90.765,90.677,0.69710069]
[1772721087334,2.14334054,90.737,90.694,2.18046049]
[1772721087726,2.14334054,90.755,90.694,2.18046049]
[1772721087917,2.14334054,90.752,90.694,2.18046049]
[1772721088252,2.14334054,90.76,90.694,2.18046049]
[1772721088532,11.01800446,90.761,90.69,1e-08]
[1772721088533,10.9590209,90.71,90.69,1e-08]
[1772721088712,2.14334054,90.696,90.636,2.18046049]
[1772721088921,2.14334054,90.679,90.639,11.03266397]
[1772721089139,2.14334054,90.679,90.636,2.18046049]
[1772721089341,11.02803326,90.678,90.637,11.03302183]
[1772721089513,0.28432314,90.691,90.65,2.28046049]
[1772721089846,2.14334054,90.688,90.65,0.1]
[1772721090535,11.31000321,90.698,90.651,2.18046049]
[1772721090720,0.28432314,90.709,90.651,2.18046049]
[1772721090915,13.45192808,90.709,90.651,2.18046049]
[1772721091121,13.16760494,90.709,90.651,2.18046049]
[1772721091321,2.14334054,90.708,90.653,2.18046049]
[1772721091727,10.9590209,90.73,90.656,2.18046049]
[1772721091923,2.14334054,90.709,90.652,11.03119622]
[1772721092217,2.14334054,90.706,90.653,2.18046049]
[1772721092422,0.28432314,90.705,90.653,2.18046049]
[1772721092619,2.42766368,90.705,90.65,0.1]
[1772721092848,2.28550211,90.679,90.631,11.03375224]
[1772721093043,4.82477569,90.718,90.631,11.03375224]
[1772721093044,0.28432314,90.704,90.634,2.18046049]
[1772721093238,2.14334054,90.719,90.642,0.14216157]
[1772721093424,0.28432314,90.708,90.647,2.18046049]
[1772721093627,2.42766368,90.708,90.647,2.18046049]
[1772721093938,0.28432314,90.697,90.647,2.18046049]
[1772721094120,126.76646308,90.718,90.611,2.18046049]
[1772721094121,2.14334054,90.669,90.611,2.18046049]
[1772721094320,10.9590209,90.65,90.611,2.18046049]
[1772721094546,2.42766368,90.649,90.6,0.1]
[1772721094745,2.42766368,90.649,90.588,27.59736929]
[1772721094746,2.14334054,90.619,90.555,2.18046049]
[1772721095042,0.28432314,90.616,90.557,2.18046049]
[1772721095236,0.14216157,90.619,90.557,2.18046049]
[1772721095439,2.14334054,90.589,90.54,13.22522402]
[1772721095644,0.28432314,90.598,90.541,2.18046049]
[1772721095953,2.42766368,90.598,90.541,2.18046049]
[1772721096327,2.42766368,90.598,90.522,3.69383402]
[1772721096328,2.14334054,90.569,90.513,2.18046049]
[1772721096524,2.14334054,90.567,90.513,2.18046049]
[1772721096751,0.28432314,90.529,90.474,2.18046049]
[1772721097244,2.14334054,90.524,90.423,2.18046049]
[1772721097437,2.14334054,90.524,90.391,44.25173914]
[1772721097438,2.14334054,90.511,90.424,2.18046049]
[1772721097625,27.62426666,90.501,90.424,2.18046049]
[1772721097828,99.43432913,90.512,90.424,2.18046049]
[1772721097829,2.14334054,90.513,90.424,1.68046049]
[1772721098021,27.61353536,90.536,90.417,1.1059867]
[1772721098022,2.14334054,90.546,90.425,13.03128159]
[1772721098242,2.14334054,90.538,90.428,3.69383402]
[1772721098445,2.28550211,90.509,90.413,282.03908725]
[1772721098644,2.14334054,90.509,90.414,1.1060234]
[1772721098839,2.14334054,90.524,90.418,0.14216157]
[1772721099148,43.47446593,90.557,90.418,0.14216157]
[1772721099149,2.14334054,90.561,90.423,8.66077128]
[1772721099349,2.14334054,90.575,90.431,4.82477569]
[1772721099525,2.14334054,90.569,90.441,8.51860971]
[1772721099730,2.14334054,90.569,90.448,3.83599559]
[1772721100027,2.14334054,90.569,90.475,2.18046049]
[1772721100228,2.14334054,90.569,90.488,0.28432314]
[1772721100436,2.14334054,90.569,90.495,1.62916438]
[1772721101047,38.64243601,90.574,90.495,1.62916438]
[1772721101048,0.28432314,90.552,90.495,1.62916438]
[1772721101351,2.14334054,90.533,90.435,171.39381873]
[1772721101547,2.14334054,90.529,90.439,3.69383402]
[1772721101854,2.14334054,90.579,90.44,1.10570544]
[1772721102036,2.28550211,90.566,90.452,4.82477569]
[1772721102242,2.28550211,90.566,90.456,8.80293285]
[1772721102535,2.28550211,90.566,90.473,2.18046049]
[1772721102536,2.14334054,90.566,90.473,2.18046049]
[1772721102737,11.04008655,90.579,90.457,1.10549763]
[1772721102738,0.14216157,90.561,90.484,2.18046049]
[1772721102942,2.14334054,90.558,90.494,2.18046049]
[1772721103446,2.14334054,90.558,90.485,0.28432314]
[1772721103447,2.14334054,90.556,90.498,3.69383402]
[1772721103650,0.28432314,90.555,90.499,2.18046049]
[1772721103839,0.28432314,90.551,90.499,2.18046049]
[1772721104040,2.14334054,90.577,90.499,2.18046049]
[1772721104237,18.93561024,90.59,90.498,3.69383402]
[1772721104238,2.14334054,90.588,90.507,2.18046049]
[1772721104436,0.28432314,90.583,90.515,2.18046049]
[1772721104646,2.14334054,90.578,90.515,2.18046049]
[1772721104830,2.14334054,90.576,90.515,2.18046049]
[1772721105036,18.93561024,90.56,90.5,1.10497237]
[1772721105238,11.03937336,90.585,90.483,2.18046049]
[1772721105239,2.14334054,90.541,90.483,2.18046049]
[1772721105447,2.14334054,90.539,90.483,2.18046049]
[1772721105656,2.14334054,90.535,90.484,11.05167764]
[1772721105852,2.14334054,90.529,90.485,2.18046049]
[1772721106041,2.14334054,90.546,90.485,2.18046049]
[1772721106254,2.14334054,90.54,90.485,2.18046049]
[1772721106453,0.28432314,90.539,90.485,2.18046049]
[1772721106760,2.14334054,90.55,90.49,2.18046049]
[1772721106937,2.14334054,90.55,90.489,0.28432314]
[1772721106938,2.14334054,90.583,90.496,2.18046049]
[1772721107135,2.14334054,90.607,90.508,2.18046049]
[1772721107340,2.14334054,90.603,90.523,0.28432314]
[1772721107560,44.11853554,90.665,90.534,2.18046049]
[1772721107561,2.14334054,90.601,90.534,2.18046049]
[1772721107755,2.14334054,90.601,90.524,3.69383402]
[1772721107952,2.14334054,90.601,90.525,1.10466721]
[1772721108356,2.14334054,90.601,90.524,3.69383402]
[1772721108957,0.14216157,90.584,90.521,38.66506113]
[1772721109160,0.14216157,90.584,90.481,44.20799199]
[1772721109161,0.14216157,90.569,90.47,1.10533878]
[1772721109465,2.16244035,90.535,90.448,138.20095521]
[1772721109640,0.14216157,90.528,90.452,2.24727652]
[1772721109844,2.16244035,90.525,90.452,2.24727652]
[1772721110040,2.16244035,90.519,90.452,2.24727652]
[1772721110239,2.16244035,90.513,90.452,2.24727652]
[1772721110446,2.44676349,90.509,90.452,2.24727652]
[1772721110658,2.44676349,90.509,90.44,11.0570544]
[1772721110659,2.44676349,90.499,90.44,11.0570544]
[1772721110840,2.44676349,90.499,90.441,2.24727652]
[1772721111455,2.44676349,90.499,90.44,38.6996904]
[1772721111664,2.16244035,90.496,90.43,2.24727652]
[1772721111846,27.76311371,90.511,90.433,2.24727652]
[1772721112045,0.14216157,90.497,90.433,2.24727652]
[1772721112244,2.16244035,90.484,90.433,2.24727652]
[1772721112663,38.66933299,90.511,90.433,2.24727652]
[1772721112664,0.28432314,90.494,90.433,2.24727652]
[1772721112863,0.28432314,90.501,90.433,2.24727652]
[1772721113068,2.16244035,90.494,90.433,2.24727652]
[1772721113446,0.28432314,90.504,90.429,38.70439791]
[1772721113447,2.16244035,90.486,90.429,38.70439791]
[1772721113650,2.44676349,90.479,90.432,2.24727652]
[1772721113854,3.69383402,90.509,90.432,2.24727652]
[1772721114050,3.69383402,90.507,90.432,2.24727652]
[1772721114266,18.93561024,90.5,90.432,2.24727652]
[1772721114563,18.93561024,90.49,90.432,2.24727652]
[1772721114767,18.93561024,90.5,90.432,2.24727652]
[1772721115356,18.93561024,90.49,90.431,11.05815483]
[1772721115667,18.93561024,90.5,90.433,11.05791027]
[1772721115873,2.44676349,90.479,90.434,2.24727652]
[1772721116368,2.16244035,90.493,90.434,2.24727652]
[1772721117050,0.28432314,90.489,90.434,2.24727652]
[1772721117247,1.10025525,90.505,90.437,2.24727652]
[1772721117557,2.16244035,90.509,90.438,0.28432314]
[1772721117762,2.16244035,90.523,90.444,2.38943809]
[1772721117963,11.04703828,90.522,90.444,2.38943809]
[1772721118144,13.20784844,90.536,90.449,2.24727652]
[1772721118348,1.10025525,90.535,90.455,2.24727652]
[1772721118555,1.10025525,90.535,90.465,2.24727652]
[1772721118752,11.04540809,90.536,90.465,2.24727652]
[1772721118953,2.16244035,90.53,90.465,2.24727652]
[1772721119169,0.14216157,90.527,90.465,2.24727652]
[1772721119468,0.28432314,90.527,90.465,2.24727652]
[1772721119870,2.16244035,90.534,90.47,2.24727652]
[1772721120070,11.04472007,90.541,90.473,0.28432314]
[1772721120371,11.04472007,90.541,90.469,3.69383402]
[1772721120372,1.10025525,90.54,90.476,2.24727652]
[1772721120671,2.16244035,90.529,90.467,2.24727652]
[1772721120876,1.10025525,90.54,90.47,2.24727652]
[1772721121057,2.16244035,90.546,90.474,2.24727652]
[1772721121375,2.16244035,90.539,90.474,2.24727652]
[1772721121570,38.65406768,90.547,90.474,2.24727652]
[1772721121571,2.16244035,90.532,90.474,2.24727652]
[1772721121870,2.16244035,90.545,90.479,2.24727652]
[1772721122050,2.16244035,90.539,90.479,2.24727652]
[1772721122254,2.16244035,90.529,90.476,2.24727652]
[1772721122570,2.16244035,90.548,90.476,2.24727652]
[1772721122873,2.16244035,90.548,90.479,2.24727652]
[1772721123072,2.37611187,90.538,90.475,38.68471953]
[1772721123275,2.37611187,90.509,90.454,2.33702528]
[1772721123566,1.10025525,90.508,90.454,2.33702528]
[1772721123773,1.10025525,90.508,90.447,44.22475637]
[1772721123774,1.10025525,90.512,90.456,2.33702528]
[1772721123965,2.37611187,90.516,90.456,2.33702528]
[1772721124473,0.28432314,90.528,90.455,138.19026034]
[1772721124474,0.28432314,90.54,90.461,2.24434959]
[1772721124656,2.30747554,90.553,90.472,0.28432314]
[1772721124968,2.30747554,90.568,90.481,2.24434959]
[1772721125172,1.10025525,90.594,90.455,270.85291027]
[1772721125173,2.30747554,90.581,90.499,3.69383402]
[1772721125466,2.30747554,90.581,90.49,0.28432314]
[1772721125467,2.30747554,90.608,90.509,2.24434959]
[1772721125669,2.30747554,90.621,90.516,2.24434959]
[1772721125901,11.03333529,90.635,90.539,3.69383402]
[1772721126078,2.30747554,90.634,90.543,2.24434959]
[1772721126258,2.30747554,90.629,90.555,2.24434959]
[1772721126854,2.30747554,90.629,90.366,24.01767425]
[1772721126855,2.30747554,90.66,90.566,0.28432314]
[1772721127076,2.30747554,90.639,90.569,2.24434959]
[1772721127458,2.30747554,90.652,90.571,2.24434959]
[1772721127658,2.30747554,90.663,90.585,2.24434959]
[1772721127872,13.33587366,90.675,90.592,2.52867273]
[1772721128062,2.30747554,90.669,90.592,2.24434959]
[1772721128262,2.30747554,90.659,90.592,2.24434959]
[1772721128462,2.30747554,90.649,90.592,2.24434959]
[1772721128665,2.30747554,90.669,90.594,2.24434959]
[1772721129086,44.09043956,90.723,90.594,2.24434959]
[1772721129087,2.30747554,90.679,90.594,2.24434959]
[1772721129576,2.30747554,90.679,90.591,3.69383402]
[1772721129577,2.30747554,90.696,90.601,2.24434959]
[1772721129782,2.30747554,90.694,90.616,2.52867273]
[1772721130081,2.30747554,90.689,90.616,2.52867273]
[1772721130281,2.30747554,90.694,90.616,2.52867273]
[1772721130472,18.93561024,90.68,90.616,2.24434959]
[1772721130653,82.69474612,90.695,90.613,2.24434959]
[1772721130654,0.28432314,90.659,90.613,2.24434959]
[1772721130858,2.59179868,90.659,90.613,2.24434959]
[1772721131054,2.59179868,90.659,90.612,11.03606586]
[1772721131490,2.59179868,90.659,90.612,40.8705801]
[1772721131697,2.59179868,90.659,90.559,4.82477569]
[1772721131698,2.59179868,90.649,90.548,2.24434959]
[1772721131987,2.59179868,90.637,90.554,2.24434959]
[1772721132174,11.0329001,90.638,90.562,2.24434959]
[1772721132175,2.59179868,90.629,90.562,2.24434959]
[1772721132380,2.59179868,90.619,90.564,2.24434959]
[1772721132872,2.59179868,90.609,90.564,2.24434959]
[1772721133075,0.28432314,90.609,90.564,2.24434959]
[1772721133286,38.61515037,90.638,90.564,2.24434959]
[1772721133287,21.24308578,90.64,90.564,2.24434959]
[1772721133455,13.34018963,90.64,90.571,0.14216157]
[1772721133655,13.34018963,90.64,90.574,2.24434959]
[1772721133859,2.19607427,90.676,90.581,2.34579547]
[1772721134155,2.19607427,90.675,90.596,0.28432314]
[1772721134356,2.19607427,90.691,90.612,0.14216157]
[1772721134556,2.19607427,90.688,90.619,2.34579547]
[1772721134763,19.13561024,90.71,90.625,2.34579547]
[1772721134764,11.02658789,90.69,90.625,2.34579547]
[1772721134962,2.19607427,90.69,90.625,2.34579547]
[1772721135183,11.0282765,90.676,90.625,2.34579547]
[1772721135569,2.48039741,90.674,90.625,2.34579547]
[1772721135775,2.48039741,90.674,90.626,11.034361]
[1772721135776,0.28432314,90.672,90.626,11.034361]
[1772721135971,44.10054173,90.702,90.626,11.034361]
[1772721135972,11.02781685,90.68,90.627,2.34579547]
[1772721136275,2.19607427,90.675,90.626,11.034361]
[1772721136476,2.19607427,90.673,90.626,11.034361]
[1772721136681,11.70557065,90.677,90.627,2.34579547]
[1772721137283,2.19607427,90.669,90.619,11.03520016]
[1772721137487,2.19607427,90.669,90.62,2.34579547]
[1772721137692,2.19607427,90.659,90.619,11.03520016]
[1772721137885,2.19607427,90.657,90.607,11.03667487]
[1772721138064,2.19607427,90.657,90.607,38.62836204]
[1772721138263,11.02991465,90.663,90.608,2.34579547]
[1772721138575,2.19607427,90.674,90.613,2.34579547]
[1772721138780,2.19607427,90.674,90.61,3.69383402]
[1772721138781,2.19607427,90.674,90.615,2.34579547]
[1772721139261,2.23561153,90.66,90.607,38.62836204]
[1772721139457,0.28432314,90.653,90.607,11.03667487]
[1772721139669,2.23561153,90.648,90.607,11.03667487]
[1772721139986,11.03058782,90.657,90.602,2.37029912]
[1772721140185,2.23561153,90.656,90.602,2.37029912]
[1772721140484,2.23561153,90.656,90.602,1.84575725]
[1772721140680,2.23561153,90.654,90.602,1.84575725]
[1772721141080,2.23561153,90.649,90.586,27.59780488]
[1772721141272,0.28432314,90.644,90.576,38.64158275]
[1772721141583,2.51993467,90.653,90.579,3.69383402]
[1772721141763,2.3777731,90.639,90.576,38.64158275]
[1772721141965,2.23561153,90.633,90.565,3.69383402]
[1772721142267,0.28432314,90.652,90.566,1.38849026]
[1772721142463,0.28432314,90.652,90.565,3.69383402]
[1772721142464,2.51993467,90.639,90.563,2.37029912]
[1772721142773,2.51993467,90.639,90.562,38.64755636]
[1772721142774,2.23561153,90.639,90.568,2.37029912]
[1772721143081,2.23561153,90.639,90.578,2.37029912]
[1772721143259,2.23561153,90.656,90.588,2.37029912]
[1772721143459,2.23561153,90.656,90.594,2.37029912]
[1772721143677,2.23561153,90.649,90.576,2.37029912]
[1772721143881,2.23561153,90.636,90.577,38.64115613]
[1772721144181,38.61472434,90.639,90.577,38.64115613]
[1772721144182,2.23561153,90.628,90.577,38.64115613]
[1772721144379,2.23561153,90.628,90.543,44.17759552]
[1772721144380,2.23561153,90.619,90.566,2.37029912]
[1772721144559,2.23561153,90.603,90.562,11.04215896]
[1772721144762,2.23561153,90.599,90.56,11.0423346]
[1772721144972,2.51993467,90.609,90.562,11.04215896]
[1772721145183,2.51993467,90.609,90.56,11.04231517]
[1772721145384,2.51993467,90.609,90.549,29.97964844]
[1772721145575,2.51993467,90.599,90.552,11.04328397]
[1772721145908,1.72496892,90.597,90.54,3.69383402]
[1772721146063,1.72496892,90.597,90.541,2.37029912]
[1772721146268,2.00929206,90.596,90.541,2.37029912]
[1772721147886,11.01601913,90.59,90.542,11.04459808]
[1772721148189,2.01080254,90.579,90.527,11.04642813]
[1772721148385,2.01080254,90.579,90.527,38.66249847]
[1772721148564,2.01080254,90.579,90.527,11.04642813]
[1772721148894,4.82477569,90.608,90.527,11.04642813]
[1772721148895,1.72697137,90.609,90.531,2.17019522]
[1772721149064,1.72697137,90.589,90.533,2.17019522]
[1772721149262,0.14216157,90.606,90.535,2.17019522]
[1772721149488,0.28432314,90.606,90.535,2.17019522]
[1772721149694,1.72745769,90.622,90.546,0.28432314]
[1772721149882,1.72745769,90.65,90.555,82.82259399]
[1772721150086,1.72745769,90.619,90.559,2.17019522]
[1772721150286,11.30034227,90.61,90.559,2.17019522]
[1772721150492,1.72793842,90.609,90.559,2.17019522]
[1772721150700,1.72793842,90.609,90.555,11.04301253]
[1772721150873,1.72793842,90.609,90.556,2.17019522]
[1772721151192,1.72793842,90.622,90.556,2.17019522]
[1772721151384,2.01230891,90.619,90.556,2.17019522]
[1772721151587,3.69383402,90.643,90.556,2.17019522]
[1772721151588,0.14216157,90.604,90.556,2.17019522]
[1772721151771,11.01601913,90.61,90.556,2.17019522]
[1772721151772,0.28432314,90.6,90.556,2.17019522]
[1772721152098,3.69383402,90.633,90.545,2.17019522]
[1772721152099,1.72798577,90.596,90.545,2.17019522]
[1772721152294,0.28432314,90.595,90.545,2.17019522]
[1772721152496,2.01235572,90.595,90.545,2.17019522]
[1772721152900,1.72803258,90.595,90.545,2.17019522]
[1772721153197,2.01235572,90.594,90.545,2.17019522]
[1772721153402,0.28432314,90.594,90.545,2.17019522]
[1772721153776,1.72807884,90.579,90.516,2.17019522]
[1772721153981,1.72807884,90.573,90.519,2.17019522]
[1772721154181,1.72807884,90.57,90.519,2.17019522]
[1772721154378,1.72807884,90.559,90.511,12.12850023]
[1772721154582,1.72807884,90.559,90.512,2.19998299]
[1772721154995,1.72816979,90.549,90.511,1.08017921]
[1772721155197,11.01601913,90.57,90.513,2.19998299]
[1772721155487,88.27712404,90.624,90.518,2.19998299]
[1772721155488,5.56421007,90.606,90.518,2.19998299]
[1772721155691,11.03496981,90.621,90.526,0.28432314]
[1772721155898,11.03360844,90.633,90.541,2.19998299]
[1772721156099,11.03360844,90.633,90.546,2.48430613]
[1772721156298,11.03360844,90.633,90.554,2.19998299]
[1772721156490,27.58020211,90.645,90.565,0.14216157]
[1772721156690,1.72825866,90.644,90.574,2.19998299]
[1772721156890,2.0125818,90.639,90.574,2.19998299]
[1772721157188,1.72830233,90.619,90.547,2.29837485]
[1772721157403,0.28432314,90.598,90.547,2.29837485]
[1772721157604,1.7283455,90.639,90.547,2.29837485]
[1772721157807,1.7283455,90.644,90.558,2.29837485]
[1772721158105,11.01601913,90.63,90.567,2.29837485]
[1772721158311,0.28432314,90.629,90.567,2.29837485]
[1772721159390,1.72843035,90.626,90.567,2.29837485]
[1772721159591,1.72843035,90.619,90.567,2.29837485]
[1772721160307,11.03533514,90.618,90.568,11.04142743]
[1772721160513,1.72847205,90.633,90.569,2.29837485]
[1772721160699,27.58152618,90.641,90.574,2.29837485]
[1772721161208,0.28432314,90.64,90.574,2.29837485]
[1772721161411,49.66,90.68,90.576,2.29837485]
[1772721161613,11.0282765,90.676,90.59,2.29837485]
[1772721161805,11.0282765,90.676,90.589,3.69383402]
[1772721161806,11.0282765,90.676,90.595,0.14216157]
[1772721161994,11.0282765,90.676,90.604,2.29837485]
[1772721162197,11.0282765,90.676,90.614,2.29837485]
[1772721162497,1.72855401,90.674,90.618,3.69383402]
[1772721162703,11.0282765,90.676,90.616,2.29837485]
[1772721162905,11.02768037,90.681,90.616,2.29837485]
[1772721163106,11.02768037,90.681,90.619,2.29837485]
[1772721163437,1.72855401,90.704,90.619,2.29837485]
[1772721163438,2.01291743,90.675,90.619,2.29837485]
[1772721163793,1.72859429,90.668,90.619,2.29837485]
[1772721163994,1.72859429,90.657,90.585,2.29837485]
[1772721164195,0.28432314,90.652,90.585,2.29837485]
[1772721164410,1.72863411,90.639,90.585,2.29837485]
[1772721164623,1.72863411,90.635,90.586,11.03923343]
[1772721164795,0.28432314,90.634,90.587,2.29837485]
[1772721166200,2.01303551,90.634,90.587,2.29837485]
[1772721166816,0.28432314,90.632,90.588,11.03898971]
[1772721167709,0.28432314,90.632,90.589,2.37572986]
[1772721168697,0.28432314,90.63,90.591,2.37572986]
[1772721169012,0.28432314,90.645,90.591,2.37572986]
[1772721169817,11.03192639,90.646,90.591,2.37572986]
[1772721170519,11.03058782,90.657,90.593,2.31238178]
[1772721170813,1.72897248,90.653,90.595,2.31238178]
[1772721171014,2.01329562,90.649,90.595,2.31238178]
[1772721171211,0.28432314,90.673,90.595,2.31238178]
[1772721171394,38.59981913,90.674,90.597,6.0062158]
[1772721171603,11.02851975,90.674,90.6,2.31238178]
[1772721171803,11.02851975,90.674,90.605,0.14216157]
[1772721172007,11.02851975,90.674,90.614,2.31238178]
[1772721172195,11.02851975,90.674,90.604,2.31238178]
[1772721172196,2.01333109,90.669,90.604,2.31238178]
[1772721172603,0.28432314,90.667,90.606,2.31238178]
[1772721173009,2.01336616,90.667,90.606,2.31238178]
[1772721173205,44.10673413,90.69,90.608,3.69383402]
[1772721173206,1.72904302,90.681,90.608,3.69383402]
[1772721173515,38.58747781,90.703,90.617,0.14216157]
[1772721173696,11.02474819,90.706,90.626,0.14216157]
[1772721173897,11.02474819,90.706,90.637,2.31238178]
[1772721174225,11.02474819,90.706,90.502,91.15065177]
[1772721174226,1.87123925,90.689,90.623,2.31238178]
[1772721174519,11.02474819,90.706,90.623,2.31238178]
[1772721174520,1.87127351,90.679,90.623,2.31238178]
[1772721174906,2.5744784,90.649,90.558,0.14216157]
[1772721175102,2.5744784,90.649,90.573,0.14216157]
[1772721175301,2.29015526,90.662,90.576,0.28432314]
[1772721175519,2.29015526,90.658,90.576,0.14216157]
[1772721175698,2.29015526,90.648,90.575,3.69383402]
[1772721175899,2.29015526,90.648,90.576,0.28432314]
[1772721176217,18.91160334,90.66,90.576,0.28432314]
[1772721176409,2.43231683,90.659,90.576,0.28432314]
[1772721176606,2.43231683,90.659,90.577,1.10403303]
[1772721177019,11.03046614,90.658,90.582,2.31238178]
[1772721177316,11.03046614,90.658,90.584,2.31238178]
[1772721177617,11.02994921,90.663,90.594,2.31238178]
[1772721177922,2.29015526,90.672,90.608,2.31238178]
[1772721178221,18.91160334,90.7,90.605,0.14216157]
[1772721178222,2.29015526,90.685,90.614,2.31238178]
[1772721178435,2.29015526,90.685,90.586,3.69383402]
[1772721178436,2.29015526,90.685,90.624,2.31238178]
[1772721178897,19.11160334,90.71,90.628,3.69383402]
[1772721178898,0.2,90.71,90.628,3.69383402]
[1772721179104,11.02112713,90.735,90.633,2.31238178]
[1772721179318,38.57389067,90.735,90.637,2.31238178]
[1772721179618,38.57389067,90.735,90.628,3.69383402]
[1772721179619,18.91160334,90.73,90.645,2.31238178]
[1772721179804,0.28432314,90.729,90.645,2.31238178]
[1772721180322,11.02112713,90.735,90.649,2.31238178]
[1772721180618,44.06281947,90.78,90.674,2.31238178]
[1772721180619,11.01782684,90.762,90.674,2.31238178]
[1772721180931,11.19275295,90.77,90.694,2.31238178]
[1772721180932,11.01697716,90.769,90.694,2.31238178]
[1772721181104,11.01697716,90.769,90.696,2.31238178]
[1772721181105,1.7532943,90.759,90.696,2.31238178]
[1772721181306,11.01697716,90.769,90.696,2.31238178]
[1772721181507,1.75506408,90.768,90.696,2.31238178]
[1772721181911,1.75506408,90.768,90.698,2.31238178]
[1772721182210,38.55942006,90.769,90.699,2.31238178]
[1772721182211,0.28432314,90.763,90.699,2.31238178]
[1772721182417,38.55942006,90.769,90.699,2.31238178]
[1772721182819,11.01697716,90.769,90.699,2.31238178]
[1772721183018,0.2,90.77,90.698,1.07562019]
[1772721183019,0.2,90.77,90.701,2.31238178]